bitfinex-derivatives/quotes_SOLF0:USTF0_20220106
["timestamp","ask_amount","ask_price","bid_price","bid_amount"]
[1641432222948,4.0,153.76,153.71,13.77959321]
[1641432223249,4.0,153.76,153.72,13.77959321]
[1641432224149,4.0,153.76,153.7,13.77959321]
[1641432225150,45.44698106,153.77,153.7,13.77959321]
[1641432225351,4.0,153.76,153.7,13.77959321]
[1641432226754,17.78219106,153.76,153.69,13.77959321]
[1641432227153,4.0,153.72,153.69,13.77959321]
[1641432227353,4.0,153.71,153.69,13.77959321]
[1641432228153,27.66479,153.7,153.69,13.77959321]
[1641432228753,31.66479,153.7,153.69,12.98259321]
[1641432228957,31.66479,153.7,153.65,20.26876992]
[1641432229156,4.0,153.68,153.65,20.26876992]
[1641432229357,4.0,153.67,153.58,66.5686]
[1641432230060,27.66479,153.64,153.58,66.5686]
[1641432230658,27.66479,153.64,153.59,10.73795664]
[1641432232862,31.66479,153.64,153.59,10.73795664]
[1641432233062,4.0,153.63,153.59,10.73795664]
[1641432233362,4.0,153.62,153.59,10.73795664]
[1641432233563,27.66479,153.64,153.59,10.73795664]
[1641432233763,4.0,153.63,153.59,10.73795664]
[1641432233963,27.66479,153.64,153.54,55.12748272]
[1641432233964,4.0,153.6,153.54,55.12748272]
[1641432234162,27.66479,153.56,153.54,55.12748272]
[1641432235562,27.66479,153.56,153.52,63.1572]
[1641432235762,27.66479,153.56,153.5,55.12748272]
[1641432236162,55.32958,153.56,153.5,55.12748272]
[1641432236763,55.32958,153.56,153.48,97.92313699]
[1641432237563,59.32958,153.56,153.48,82.79227272]
[1641432237763,55.32958,153.56,153.48,27.66479]
[1641432238764,55.32958,153.56,153.48,31.66479]
[1641432238963,55.32958,153.56,153.48,27.66479]
[1641432239867,55.32958,153.56,153.48,97.92403226]
[1641432241066,55.32958,153.56,153.49,55.12748272]
[1641432242168,55.32958,153.56,153.5,4.0]
[1641432242369,27.66479,153.56,153.51,4.0]
[1641432242571,4.59695661,153.6,153.5,4.0]
[1641432242970,4.59695661,153.6,153.48,97.92403226]
[1641432243371,8.59695661,153.6,153.48,97.92403226]
[1641432243672,8.59695661,153.61,153.49,55.12748272]
[1641432244372,27.66479,153.56,153.49,55.12748272]
[1641432244572,27.66479,153.56,153.5,4.0]
[1641432244772,4.59695661,153.61,153.5,4.0]
[1641432244973,4.59695661,153.61,153.52,4.0]
[1641432245172,4.59695661,153.61,153.49,61.63218237]
[1641432245573,4.59695661,153.61,153.52,4.0]
[1641432245772,84.21879965,153.67,153.52,59.12748272]
[1641432245773,4.59695661,153.64,153.52,59.12748272]
[1641432245977,4.59695661,153.64,153.53,67.3528]
[1641432246173,4.59695661,153.64,153.53,73.85601909]
[1641432246473,27.66479,153.61,153.53,101.52080909]
[1641432246974,27.66479,153.61,153.53,95.01759]
[1641432247173,27.66479,153.61,153.54,1.28112024]
[1641432248775,27.66479,153.61,153.54,5.28112024]
[1641432249177,27.66479,153.61,153.54,1.28112024]
[1641432250077,27.66479,153.61,153.54,7.76125586]
[1641432250277,27.66479,153.61,153.54,18.49816493]
[1641432250477,27.66479,153.61,153.54,22.49816493]
[1641432250678,27.66479,153.61,153.54,18.49816493]
[1641432253778,27.66479,153.61,153.54,22.49816493]
[1641432253978,27.66479,153.63,153.57,4.0]
[1641432254179,4.59695661,153.65,153.62,4.0]
[1641432254380,4.59695661,153.65,153.62,8.341]
[1641432254678,4.59695661,153.65,153.63,4.0]
[1641432254879,4.59695661,153.65,153.63,27.66479]
[1641432255879,94.35929,153.73,153.63,27.66479]
[1641432256080,94.35929,153.73,153.63,28.94591024]
[1641432256081,4.59403493,153.71,153.63,28.94591024]
[1641432257082,4.59403493,153.7,153.64,7.76125586]
[1641432257991,4.59403493,153.71,153.64,7.76125586]
[1641432259690,4.59403493,153.71,153.67,13.78111344]
[1641432260789,4.59403493,153.7,153.66,13.78111344]
[1641432261189,32.25882493,153.7,153.66,13.78111344]
[1641432261391,4.59403493,153.69,153.66,13.78111344]
[1641432261991,4.0,153.67,153.66,13.78111344]
[1641432262189,4.0,153.67,153.64,7.76125586]
[1641432262489,4.0,153.66,153.64,7.76125586]
[1641432262689,4.0,153.66,153.58,117.70118272]
[1641432262690,4.0,153.66,153.59,17.21633121]
[1641432263192,27.66479,153.63,153.59,17.21633121]
[1641432263490,27.66479,153.63,153.59,6.48013562]
[1641432264691,27.66479,153.63,153.56,17.21712928]
[1641432264891,32.17479,153.63,153.56,17.21712928]
[1641432271298,36.17479,153.63,153.56,17.21712928]
[1641432272398,40.76882493,153.63,153.56,17.21712928]
[1641432273899,36.76882493,153.63,153.56,17.21712928]
[1641432276706,40.76882493,153.63,153.56,17.21712928]
[1641432276907,36.76882493,153.63,153.56,17.21712928]
[1641432278512,32.17479,153.63,153.56,18.49731861]
[1641432279711,36.17479,153.63,153.56,18.49731861]
[1641432279911,32.17479,153.63,153.56,18.49731861]
[1641432280914,36.17479,153.63,153.56,18.49731861]
[1641432281516,32.17479,153.63,153.56,18.49731861]
[1641432281713,27.66479,153.63,153.56,18.49731861]
[1641432284018,31.66479,153.63,153.56,18.49731861]
[1641432284618,27.66479,153.63,153.56,18.49731861]
[1641432285219,32.25882493,153.63,153.56,18.49731861]
[1641432285721,27.66479,153.6,153.56,18.49731861]
[1641432286119,27.66479,153.6,153.56,7.76032495]
[1641432290322,4.59403493,153.61,153.56,7.76032495]
[1641432291624,32.25882493,153.61,153.56,7.76032495]
[1641432292423,4.0,153.59,153.56,7.76032495]
[1641432292725,4.0,153.57,153.56,7.76032495]
[1641432293023,4.0,153.57,153.52,10.73518343]
[1641432293223,4.0,153.56,153.52,10.73518343]
[1641432293624,27.66479,153.53,153.52,10.73518343]
[1641432294225,27.66479,153.53,153.48,10.73518343]
[1641432297528,9e-05,153.53,153.5,4.0]
[1641432297727,4.59403493,153.57,153.5,31.66479]
[1641432297927,4.59403493,153.58,153.5,31.66479]
[1641432298227,4.59403493,153.58,153.5,27.66479]
[1641432298627,32.25882493,153.6,153.5,38.39997343]
[1641432299828,27.66479,153.6,153.5,27.66479]
[1641432301129,27.66479,153.6,153.5,38.39997343]
[1641432302029,32.25882493,153.6,153.5,38.39997343]
[1641432305139,4.59403493,153.6,153.5,42.39997343]
[1641432305336,4.59403493,153.6,153.53,4.0]
[1641432305736,4.59403493,153.6,153.55,27.66479]
[1641432306139,4.59403493,153.6,153.5,38.39997343]
[1641432306637,4.59403493,153.61,153.5,38.39997343]
[1641432306939,4.59403493,153.61,153.51,10.73518343]
[1641432307838,31.66479,153.63,153.6,4.59685684]
[1641432308640,31.66479,153.63,153.62,4.59685684]
[1641432308840,31.66479,153.63,153.57,13.79016333]
[1641432309543,31.66479,153.63,153.6,13.79016333]
[1641432309943,4.0,153.62,153.6,5.79706822]
[1641432310143,4.0,153.61,153.53,10.73518343]
[1641432310342,4.0,153.62,153.53,10.73518343]
[1641432310542,4.0,153.61,153.53,10.73518343]
[1641432310743,4.0,153.62,153.53,10.73518343]
[1641432311145,4.0,153.6,153.53,10.73518343]
[1641432311342,4.0,153.61,153.53,10.73518343]
[1641432311847,27.66479,153.58,153.53,10.73518343]
[1641432313244,27.66479,153.58,153.53,17.21196172]
[1641432315145,31.66479,153.58,153.53,17.21196172]
[1641432315345,28.53325219,153.58,153.53,17.21196172]
[1641432315747,28.53325219,153.58,153.53,6.47677829]
[1641432315946,24.53325219,153.58,153.53,6.47677829]
[1641432321753,52.19804219,153.58,153.53,6.47677829]
[1641432321952,24.53325219,153.58,153.53,6.47677829]
[1641432324056,104.12929,153.61,153.53,6.47677829]
[1641432324255,27.66479,153.61,153.53,6.47677829]
[1641432324456,27.66479,153.61,153.53,16.33077829]
[1641432324658,27.66479,153.61,153.53,18.83399738]
[1641432325257,27.66479,153.61,153.53,29.56447442]
[1641432325758,27.66479,153.61,153.53,57.22926442]
[1641432326057,27.66479,153.61,153.53,50.72604533]
[1641432326257,27.66479,153.61,153.53,44.87204533]
[1641432326957,27.66479,153.61,153.54,6.47677829]
[1641432331862,66.1266,153.64,153.54,6.47677829]
[1641432332365,27.66479,153.61,153.54,6.47677829]
[1641432332863,27.66479,153.61,153.53,44.87204533]
[1641432333363,3.31963201,153.6,153.54,6.47677829]
[1641432333563,3.31963201,153.6,153.54,7.75479133]
[1641432335364,27.66479,153.61,153.54,7.75479133]
[1641432340574,27.66479,153.61,153.56,13.79284788]
[1641432342274,27.66479,153.61,153.57,13.79284788]
[1641432342974,27.66479,153.61,153.56,13.79284788]
[1641432343776,32.81679,153.61,153.56,13.79284788]
[1641432343977,3.32042907,153.6,153.54,13.79284788]
[1641432344777,27.66479,153.58,153.54,13.79284788]
[1641432346378,27.66479,153.58,153.55,13.79284788]
[1641432346581,31.66479,153.58,153.53,3.921e-05]
[1641432346878,27.66479,153.54,153.47,55.12748272]
[1641432347678,27.66479,153.54,153.44,34.17160589]
[1641432348981,4.0,153.53,153.44,27.66479]
[1641432349280,4.0,153.53,153.44,38.39282091]
[1641432349482,4.0,153.53,153.44,10.72803091]
[1641432349681,4.0,153.52,153.44,10.72803091]
[1641432349881,4.0,153.51,153.44,10.72803091]
[1641432350085,4.0,153.52,153.44,10.72803091]
[1641432350284,4.0,153.51,153.44,10.72803091]
[1641432350582,4.0,153.5,153.44,10.72803091]
[1641432350782,4.0,153.49,153.44,10.72803091]
[1641432350985,27.66479,153.45,153.44,10.72803091]
[1641432351184,27.66479,153.45,153.43,4.216]
[1641432351986,31.66479,153.45,153.43,4.216]
[1641432352683,31.66479,153.45,153.39,55.12748272]
[1641432353284,4.0,153.43,153.36,100.2305267]
[1641432353486,4.0,153.43,153.36,10.7307367]
[1641432354084,31.66479,153.45,153.36,10.7307367]
[1641432354485,4.0,153.44,153.36,10.7307367]
[1641432354887,27.66479,153.4,153.34,65.0902]
[1641432355091,27.66479,153.4,153.32,38.3955267]
[1641432356090,27.66479,153.4,153.32,93.52300942]
[1641432357191,27.66479,153.4,153.32,38.3955267]
[1641432358393,27.66479,153.4,153.32,93.52300942]
[1641432359695,27.66479,153.4,153.32,38.3955267]
[1641432360294,27.66479,153.4,153.32,42.3955267]
[1641432360498,27.66479,153.4,153.32,38.3955267]
[1641432361195,27.66479,153.4,153.32,42.3955267]
[1641432361397,27.66479,153.4,153.32,108.65147036]
[1641432362596,27.66479,153.4,153.34,55.12748272]
[1641432365097,55.32958,153.4,153.32,65.85821942]
[1641432365799,64.7261,153.44,153.33,4.0]
[1641432365996,39.69184317,153.5,153.34,4.0]
[1641432366197,61.9135,153.46,153.33,4.0]
[1641432366396,61.9135,153.46,153.35,4.0]
[1641432366597,61.9135,153.46,153.34,10.51126449]
[1641432366796,61.9135,153.46,153.35,4.0]
[1641432366996,27.66479,153.46,153.38,27.66479]
[1641432367397,27.66479,153.48,153.38,27.66479]
[1641432367598,27.66479,153.48,153.38,90.52399]
[1641432368500,27.66479,153.48,153.39,72.3284348]
[1641432369600,27.66479,153.48,153.39,17.20095208]
[1641432371201,4.0,153.47,153.39,17.20095208]
[1641432371401,32.26609492,153.48,153.39,17.20095208]
[1641432372000,36.26609492,153.48,153.39,17.20095208]
[1641432372203,32.26609492,153.48,153.39,17.20095208]
[1641432373003,36.26609492,153.48,153.39,17.20095208]
[1641432373203,4.60130492,153.47,153.46,4.60192396]
[1641432373404,4.60130492,153.47,153.46,1e-08]
[1641432373804,8.60130492,153.47,153.46,1e-08]
[1641432376305,8.60130492,153.47,153.39,17.20095208]
[1641432376505,4.0,153.44,153.39,17.20095208]
[1641432376706,4.0,153.44,153.36,6.47021538]
[1641432377206,31.66479,153.43,153.36,6.47021538]
[1641432377407,4.0,153.42,153.36,6.47021538]
[1641432378207,4.0,153.41,153.4,13.80947529]
[1641432378407,3.56718344,153.41,153.4,13.80947529]
[1641432378608,3.56718344,153.42,153.4,13.80947529]
[1641432378809,27.66479,153.43,153.4,13.80947529]
[1641432379008,27.66479,153.43,153.39,13.80947529]
[1641432379809,27.66479,153.43,153.4,13.80947529]
[1641432381912,3.56718344,153.41,153.36,6.47021538]
[1641432382110,27.66479,153.43,153.36,6.47021538]
[1641432382111,3.56718344,153.4,153.36,6.47021538]
[1641432383110,3.56718344,153.4,153.32,6.47021538]
[1641432383312,31.23197344,153.4,153.33,0.43281656]
[1641432383511,31.23197344,153.4,153.32,6.90303194]
[1641432384314,31.23197344,153.4,153.32,6.47021538]
[1641432384514,27.66479,153.4,153.34,0.43281656]
[1641432384715,5.2131878,153.46,153.33,6.51168848]
[1641432384912,61.8223,153.45,153.33,6.51168848]
[1641432385113,65.38948344,153.45,153.35,0.43281656]
[1641432385313,27.66479,153.43,153.33,0.43281656]
[1641432385514,31.23197344,153.43,153.33,0.43281656]
[1641432385715,3.56718344,153.42,153.33,0.43281656]
[1641432387120,3.56718344,153.39,153.32,17.20095208]
[1641432387317,3.56718344,153.38,153.32,17.20095208]
[1641432387518,27.66479,153.39,153.34,1.2751185]
[1641432387917,31.23197344,153.39,153.34,1.2751185]
[1641432388419,27.66479,153.39,153.32,7.74533388]
[1641432389218,31.23197344,153.39,153.32,7.74533388]
[1641432389420,58.89676344,153.39,153.32,7.74533388]
[1641432389819,3.56718344,153.38,153.32,7.74533388]
[1641432391021,58.89676344,153.39,153.32,7.74533388]
[1641432391222,55.32958,153.39,153.32,7.74533388]
[1641432391424,55.32958,153.39,153.33,0.43281656]
[1641432392625,55.32958,153.39,153.34,1.2751185]
[1641432394831,55.32958,153.39,153.32,18.47399792]
[1641432396130,58.89676344,153.39,153.32,18.47399792]
[1641432398133,55.32958,153.39,153.32,18.47399792]
[1641432398332,3.56718344,153.37,153.32,18.47399792]
[1641432398934,55.32958,153.39,153.32,18.47399792]
[1641432399134,58.89676344,153.39,153.32,18.47399792]
[1641432399534,55.32958,153.39,153.32,8.17815044]
[1641432400335,55.32958,153.39,153.34,0.43281656]
[1641432400535,3.33046881,153.38,153.33,1.2751185]
[1641432402035,3.33046881,153.38,153.32,7.74533388]
[1641432402437,3.33046881,153.38,153.35,0.43281656]
[1641432402640,3.33046881,153.38,153.36,0.43281656]
[1641432402840,36.70075744,153.43,153.37,0.43281656]
[1641432403038,36.70075744,153.43,153.35,0.43281656]
[1641432403238,36.70075744,153.43,153.34,0.43281656]
[1641432403439,36.70075744,153.43,153.32,7.74533388]
[1641432403839,36.70075744,153.43,153.34,0.43281656]
[1641432404039,27.66479,153.42,153.34,0.43281656]
[1641432404239,95.92419,153.42,153.34,0.43281656]
[1641432405141,3.56718344,153.39,153.32,6.47021538]
[1641432405740,3.56718344,153.4,153.32,6.90303194]
[1641432405940,3.56718344,153.4,153.32,6.47021538]
[1641432406139,27.66479,153.38,153.32,6.90303194]
[1641432406440,27.66479,153.38,153.32,6.47021538]
[1641432408744,27.66479,153.38,153.32,6.90303194]
[1641432409246,27.66479,153.38,153.32,6.47021538]
[1641432409447,27.66479,153.38,153.32,6.90303194]
[1641432409648,95.92419,153.42,153.32,6.90303194]
[1641432409649,95.92419,153.42,153.32,17.1998808]
[1641432409847,99.49137344,153.42,153.32,17.63269736]
[1641432410448,3.56718344,153.41,153.32,17.63269736]
[1641432410749,3.56718344,153.4,153.32,17.1998808]
[1641432411749,3.56718344,153.38,153.32,17.1998808]
[1641432412152,27.66479,153.38,153.32,6.47021538]
[1641432412854,31.23197344,153.38,153.33,13.81424184]
[1641432413056,27.66479,153.38,153.33,13.81424184]
[1641432414857,27.66479,153.38,153.32,20.28445722]
[1641432415057,3.56718344,153.37,153.32,20.28445722]
[1641432416156,9.27618344,153.37,153.32,20.28445722]
[1641432416357,3.56718344,153.36,153.32,20.28445722]
[1641432417359,3.56718344,153.36,153.32,13.81424184]
[1641432417563,3.56718344,153.36,153.31,81.85894184]
[1641432417760,3.56718344,153.37,153.31,81.85894184]
[1641432418559,3.56718344,153.37,153.31,13.81424184]
[1641432418761,3.56718344,153.32,153.24,0.43281656]
[1641432418960,3.56718344,153.32,153.22,55.12748272]
[1641432419163,3.56718344,153.29,153.22,55.12748272]
[1641432419361,3.56718344,153.3,153.22,55.12748272]
[1641432419560,6.5199674,153.31,153.22,55.12748272]
[1641432419761,3.56718344,153.3,153.22,55.12748272]
[1641432419964,3.56718344,153.29,153.22,55.12748272]
[1641432420162,31.23197344,153.26,153.22,55.12748272]
[1641432420764,31.23197344,153.26,153.18,44.86561043]
[1641432420963,3.56718344,153.24,153.18,44.86561043]
[1641432421867,3.56718344,153.24,153.19,6.46835007]
[1641432424666,3.56718344,153.2,153.19,6.46835007]
[1641432425267,3.56718344,153.2,153.12,70.69625177]
[1641432425570,3.56718344,153.19,153.12,0.43281656]
[1641432425769,3.56718344,153.18,153.13,0.43281656]
[1641432426269,31.23197344,153.18,153.13,0.43281656]
[1641432426670,27.66479,153.18,153.13,0.43281656]
[1641432427574,27.66479,153.18,153.09,10.73074134]
[1641432428273,27.66479,153.18,153.14,0.43281656]
[1641432429773,27.66479,153.18,153.17,0.43281656]
[1641432429974,27.66479,153.2,153.17,0.43281656]
[1641432430174,27.66479,153.2,153.16,0.43281656]
[1641432430375,27.66479,153.23,153.16,0.43281656]
[1641432430976,27.66479,153.23,153.15,27.66479]
[1641432431378,27.66479,153.23,153.15,28.09760656]
[1641432432178,27.66479,153.23,153.15,27.66479]
[1641432432378,27.66479,153.23,153.15,28.09760656]
[1641432433382,27.66479,153.23,153.15,27.66479]
[1641432433583,27.66479,153.23,153.22,4.60873366]
[1641432433782,36.70075744,153.29,153.22,5.04155022]
[1641432433982,36.70075744,153.29,153.22,4.60873366]
[1641432434382,27.66479,153.28,153.22,4.60873366]
[1641432434584,27.66479,153.28,153.26,4.60873366]
[1641432436585,27.66479,153.28,153.27,4.60873366]
[1641432438893,37.75321639,153.28,153.27,4.60873366]
[1641432439092,34.18603295,153.28,153.27,4.60873366]
[1641432439692,27.66479,153.28,153.24,4.60762375]
[1641432440596,27.66479,153.28,153.21,0.43281656]
[1641432440798,27.66479,153.28,153.25,4.60730584]
[1641432441396,27.66479,153.28,153.21,0.43281656]
[1641432441397,27.66479,153.28,153.24,4.60747061]
[1641432442797,27.66479,153.28,153.2,0.43281656]
[1641432443298,27.66479,153.28,153.18,27.66479]
[1641432443497,27.66479,153.28,153.25,4.60725987]
[1641432443498,3.33472,153.27,153.25,4.60725987]
[1641432444497,27.66479,153.28,153.21,1.70535643]
[1641432444697,27.66479,153.28,153.24,4.6071095]
[1641432445197,27.66479,153.28,153.25,0.43281656]
[1641432445397,27.66479,153.28,153.24,5.03992606]
[1641432445598,3.33475345,153.27,153.2,4.0]
[1641432445900,3.33475345,153.27,153.25,0.43281656]
[1641432446099,3.33475345,153.27,153.21,4.0]
[1641432446499,36.70075744,153.31,153.23,27.66479]
[1641432446702,3.33342278,153.3,153.26,0.43281656]
[1641432447101,3.33342278,153.3,153.23,27.66479]
[1641432447501,15.29323739,153.32,153.27,5.87885266]
[1641432448505,15.29323739,153.32,153.27,0.43281656]
[1641432448703,15.29323739,153.32,153.28,4.60601325]
[1641432449405,13.81794699,153.31,153.28,1.27279538]
[1641432450307,3.33332406,153.32,153.25,20.28272289]
[1641432450509,17.15125358,153.32,153.28,4.60597651]
[1641432451209,17.15125358,153.32,153.25,13.81794699]
[1641432451409,13.81792952,153.31,153.25,1.27277637]
[1641432451610,13.81792952,153.31,153.25,1.70559293]
[1641432452209,37.26479,153.33,153.26,0.43281656]
[1641432452409,4.5706792,153.32,153.26,0.43281656]
[1641432452610,27.66479,153.3,153.24,61.7358]
[1641432452810,27.66479,153.3,153.25,0.43281656]
[1641432453411,24.75289902,153.3,153.24,0.43281656]
[1641432454411,24.75289902,153.3,153.23,4.5706792]
[1641432454612,24.75289902,153.3,153.24,0.43281656]
[1641432454910,24.75289902,153.3,153.23,4.5706792]
[1641432455412,24.75289902,153.3,153.25,0.43281656]
[1641432455915,3.33342308,153.29,153.27,4.5706792]
[1641432456915,3.33342308,153.29,153.28,0.43281656]
[1641432457114,3.33342308,153.29,153.27,5.00349576]
[1641432457315,3.33342308,153.29,153.27,4.5706792]
[1641432457714,3.33342308,153.29,153.27,5.84343522]
[1641432458315,3.33342308,153.29,153.27,4.5706792]
[1641432460221,3.33342308,153.29,153.28,4.5706792]
[1641432462222,3.33342308,153.29,153.26,4.5706792]
[1641432462825,6.90060652,153.29,153.26,4.5706792]
[1641432463124,27.66479,153.27,153.26,4.5706792]
[1641432464328,30.99821308,153.27,153.25,4.5706792]
[1641432465328,30.99821308,153.26,153.25,4.5706792]
[1641432465528,34.56539652,153.26,153.25,7.92e-05]
[1641432465728,34.56539652,153.26,153.22,0.25693916]
[1641432466027,4.0,153.23,153.14,55.12748272]
[1641432466227,4.0,153.22,153.14,55.12748272]
[1641432466428,4.0,153.22,153.13,55.12748272]
[1641432466429,10.52358275,153.22,153.13,55.12748272]
[1641432467128,27.66479,153.17,153.13,55.12748272]
[1641432467729,62.2946,153.21,153.12,4.0]
[1641432467931,6.522519,153.25,153.12,4.0]
[1641432468131,73.225019,153.25,153.12,4.0]
[1641432468331,73.225019,153.25,153.13,4.0]
[1641432468645,109.92577644,153.25,153.13,4.0]
[1641432468828,109.92577644,153.25,153.12,4.0]
[1641432469231,27.66479,153.23,153.13,27.66479]
[1641432469430,27.66479,153.23,153.13,31.66479]
[1641432470033,27.66479,153.23,153.13,27.66479]
[1641432470239,31.66479,153.23,153.11,10.72445617]
[1641432470433,31.66479,153.23,153.12,4.0]
[1641432471134,27.66479,153.2,153.12,4.0]
[1641432471336,27.66479,153.2,153.11,10.72445617]
[1641432471535,27.66479,153.2,153.12,4.0]
[1641432479243,27.66479,153.2,153.11,42.38924617]
[1641432479745,27.66479,153.2,153.11,38.38924617]
[1641432480945,27.66479,153.2,153.11,27.66479]
[1641432481748,27.66479,153.2,153.11,38.38979065]
[1641432483148,27.66479,153.2,153.13,4.0]
[1641432483347,27.66479,153.2,153.14,27.66479]
[1641432484147,36.70075744,153.24,153.19,4.0]
[1641432484347,36.70075744,153.24,153.2,4.0]
[1641432484547,36.70075744,153.24,153.19,4.0]
[1641432484751,36.70075744,153.26,153.19,4.0]
[1641432485147,36.70075744,153.26,153.2,4.0]
[1641432485347,36.70075744,153.26,153.2,10.876]
[1641432485949,27.66479,153.29,153.2,10.876]
[1641432486147,27.66479,153.29,153.2,6.876]
[1641432486749,31.66479,153.29,153.2,6.876]
[1641432486955,18.49104656,153.28,153.2,13.33614397]
[1641432487253,4.0,153.27,153.2,13.33614397]
[1641432487450,27.66479,153.25,153.2,13.33614397]
[1641432487851,27.66479,153.25,153.2,6.876]
[1641432492562,31.66479,153.25,153.2,6.876]
[1641432492760,4.0,153.24,153.2,6.876]
[1641432493260,4.0,153.22,153.2,6.876]
[1641432493762,4.0,153.21,153.2,6.876]
[1641432494162,4.0,153.21,153.16,6.46014397]
[1641432494966,4.0,153.21,153.13,6.46014397]
[1641432495166,4.998,153.22,153.13,6.46014397]
[1641432495167,4.0,153.18,153.13,6.46014397]
[1641432495364,27.66479,153.17,153.13,6.46014397]
[1641432495762,33.17879,153.17,153.11,6.46014397]
[1641432497165,33.17879,153.17,153.12,13.82922159]
[1641432497366,27.66479,153.17,153.12,13.82922159]
[1641432499870,27.66479,153.17,153.11,20.28936556]
[1641432501172,10.52784124,153.12,153.03,28.12748272]
[1641432501373,4.0,153.04,153.03,22.12748272]
[1641432501573,55.32958,153.04,153.03,22.12748272]
[1641432501774,55.32958,153.04,153.02,13.00748272]
[1641432501975,55.32958,153.04,153.02,5.88748272]
[1641432502175,4.0,153.03,153.02,5.88748272]
[1641432502375,8.368,153.03,153.02,5.88748272]
[1641432502576,14.9001053,153.03,152.97,91.69906524]
[1641432502777,4.0,153.02,152.97,65.30654796]
[1641432502977,4.0,153.02,152.97,46.30654796]
[1641432503176,4.0,153.02,152.97,39.08654796]
[1641432503375,4.0,153.02,152.93,139.32741057]
[1641432503376,4.0,153.02,152.94,10.71566807]
[1641432503577,27.66479,152.98,152.94,10.71566807]
[1641432504980,27.66479,152.98,152.9,10.71566807]
[1641432505580,38.19881594,152.98,152.9,10.71566807]
[1641432505780,34.19881594,152.98,152.86,4.0]
[1641432505979,34.19881594,152.98,152.87,4.0]
[1641432506382,34.19881594,152.98,152.88,4.0]
[1641432506587,34.19881594,152.98,152.89,4.0]
[1641432506982,27.66479,152.98,152.89,4.0]
[1641432508185,34.19860248,152.98,152.89,4.0]
[1641432509488,34.19860248,152.98,152.89,27.66479]
[1641432509489,27.66479,152.98,152.89,27.66479]
[1641432509691,27.66479,152.98,152.9,4.0]
[1641432510189,27.66479,152.98,152.92,4.0]
[1641432510390,27.66479,152.98,152.9,4.0]
[1641432510589,27.66479,152.98,152.93,4.0]
[1641432510791,27.66479,152.98,152.93,8.349]
[1641432511489,27.66479,152.98,152.93,4.349]
[1641432511692,27.66479,152.98,152.94,1.26589177]
[1641432512888,27.66479,152.98,152.93,1.26589177]
[1641432513690,46.50075744,153.04,152.97,4.0]
[1641432513889,36.70075744,153.04,153.0,2.76647899]
[1641432514093,36.70075744,153.04,152.98,4.0]
[1641432514389,36.70075744,153.04,152.91,65.5891]
[1641432514390,36.70075744,153.04,152.94,4.0]
[1641432514591,3.35325333,153.03,152.97,4.0]
[1641432514891,3.35325333,153.03,152.98,1.26589177]
[1641432516092,3.35325333,153.03,152.97,1.26589177]
[1641432516293,27.66479,153.06,152.97,1.26589177]
[1641432516493,6.53103876,153.05,152.97,1.26589177]
[1641432517496,3.35325333,153.04,152.97,1.26589177]
[1641432517694,27.66479,153.02,152.97,1.26589177]
[1641432518298,3.35325333,153.01,152.95,1.26589177]
[1641432519599,3.35325333,153.01,152.96,27.66479]
[1641432520599,3.35325333,153.05,152.97,1.26589177]
[1641432521702,15.37107778,153.05,152.97,7.70561027]
[1641432522501,21.90190328,153.05,152.97,7.70561027]
[1641432523404,21.90190328,153.05,152.97,1.26589177]
[1641432523603,27.66479,153.03,152.97,1.26589177]
[1641432524005,34.19646864,153.03,152.97,1.26589177]
[1641432524205,3.35325333,153.02,152.94,7.70564709]
[1641432526109,3.35325333,153.02,152.99,4.61496073]
[1641432526515,6.53253201,153.01,152.94,7.70564709]
[1641432527312,6.53253201,153.01,152.88,64.7157]
[1641432527715,27.66479,152.96,152.88,92.38049]
[1641432527914,15.37632014,153.02,152.88,92.38049]
[1641432528114,15.37632014,153.02,152.9,6.52997257]
[1641432528514,3.35325333,153.03,152.9,6.52997257]
[1641432528916,3.35325333,153.03,152.89,18.40513269]
[1641432529517,6.53125204,153.04,152.91,1.26087362]
[1641432529716,27.66479,153.01,152.92,27.66479]
[1641432530918,3.35325333,153.0,152.93,7.6999136]
[1641432531620,3.35325333,153.0,152.94,13.84531673]
[1641432532819,3.35325333,153.0,152.95,13.84531673]
[1641432533819,3.35325333,153.0,152.93,7.6999136]
[1641432533820,3.35325333,153.0,152.94,13.84531673]
[1641432534621,3.35325333,153.0,152.95,13.84531673]